[Event "*** Titled Tuesday Blitz"]
[Site "Chess.com"]
[Date "2021.03.09"]
[Round "1"]
[White "pavelalexandru07"]
[Black "ALeks_Ivlev"]
[Result "0-1"]
[WhiteElo "2315"]
[BlackElo "2615"]
[TimeControl "180+1"]
[EndTime "10:06:15 PST"]
[Termination "ALeks_Ivlev won by checkmate"]

1. e4 {[%clk 0:02:56.9]} 1... c5 {[%clk 0:02:58.8]} 2. Nf3 {[%clk 0:02:52.8]}
2... d6 {[%clk 0:02:58.5]} 3. d4 {[%clk 0:02:52.8]} 3... cxd4 {[%clk 0:02:57.9]}
4. Nxd4 {[%clk 0:02:52.3]} 4... Nf6 {[%clk 0:02:57.7]} 5. Nc3 {[%clk 0:02:52.7]}
5... g6 {[%clk 0:02:58.3]} 6. Be3 {[%clk 0:02:51.3]} 6... Bg7 {[%clk 0:02:58.5]}
7. Bc4 {[%clk 0:02:52]} 7... a6 {[%clk 0:02:54.9]} 8. f3 {[%clk 0:02:50]} 8...
Nbd7 {[%clk 0:02:48.5]} 9. Qd2 {[%clk 0:02:49.1]} 9... h5 {[%clk 0:02:47.8]} 10.
h4 {[%clk 0:02:37.2]} 10... b5 {[%clk 0:02:46.2]} 11. Bb3 {[%clk 0:02:30.6]}
11... Nc5 {[%clk 0:02:45.8]} 12. O-O-O {[%clk 0:02:23.9]} 12... Bb7 {[%clk
0:02:44.4]} 13. Kb1 {[%clk 0:02:04.2]} 13... Rc8 {[%clk 0:02:44.2]} 14. Rhe1
{[%clk 0:02:02.1]} 14... Qa5 {[%clk 0:02:38.9]} 15. Bf4 {[%clk 0:00:43.5]} 15...
e5 {[%clk 0:02:32.9]} 16. Ncxb5 {[%clk 0:00:27.5]} 16... Qxd2 {[%clk 0:02:19]}
17. Nxd6+ {[%clk 0:00:26.7]} 17... Kd7 {[%clk 0:01:58.6]} 18. Rxd2 {[%clk
0:00:22.1]} 18... Kxd6 {[%clk 0:01:57.9]} 19. Nf5+ {[%clk 0:00:20.9]} 19... Kc6
{[%clk 0:01:52.9]} 20. Ne7+ {[%clk 0:00:13.5]} 20... Kb5 {[%clk 0:01:50.9]} 21.
c4+ {[%clk 0:00:09.4]} 21... Ka5 {[%clk 0:01:46.7]} 22. Bxe5 {[%clk 0:00:09.1]}
22... Nfxe4 {[%clk 0:01:23.7]} 23. fxe4 {[%clk 0:00:05.9]} 23... Bxe5 {[%clk
0:01:19.3]} 24. Nxc8 {[%clk 0:00:04.6]} 24... Rxc8 {[%clk 0:01:19.7]} 25. Rf2
{[%clk 0:00:04.3]} 25... Bxe4+ {[%clk 0:01:16.4]} 26. Ka1 {[%clk 0:00:04.1]}
26... f5 {[%clk 0:01:12.7]} 27. Rd2 {[%clk 0:00:03.8]} 27... Nxb3+ {[%clk
0:01:09.6]} 28. axb3 {[%clk 0:00:03.8]} 28... Kb4 {[%clk 0:01:09.1]} 29. Ka2
{[%clk 0:00:04.2]} 29... Rc5 {[%clk 0:01:08.3]} 30. Rd7 {[%clk 0:00:03.7]} 30...
Ra5# {[%clk 0:01:08.3]} 0-1

[Event "*** Titled Tuesday Blitz"]
[Site "Chess.com"]
[Date "2021.03.09"]
[Round "1"]
[White "kidagent"]
[Black "Geller_Jakov"]
[Result "0-1"]
[WhiteElo "2305"]
[BlackElo "2610"]
[TimeControl "180+1"]
[EndTime "10:06:17 PST"]
[Termination "Geller_Jakov won by resignation"]

1. e4 {[%clk 0:03:00.9]} 1... c5 {[%clk 0:02:58.5]} 2. Nf3 {[%clk 0:03:00.4]}
2... e6 {[%clk 0:02:57.9]} 3. d4 {[%clk 0:02:59.6]} 3... cxd4 {[%clk 0:02:58.8]}
4. Nxd4 {[%clk 0:02:59.8]} 4... Nc6 {[%clk 0:02:59.4]} 5. Nc3 {[%clk 0:02:59.7]}
5... Qc7 {[%clk 0:02:59.4]} 6. g3 {[%clk 0:02:56.8]} 6... Nf6 {[%clk 0:02:58.5]}
7. Bg2 {[%clk 0:02:56.2]} 7... a6 {[%clk 0:02:59.1]} 8. O-O {[%clk 0:02:55.4]}
8... Nxd4 {[%clk 0:02:59.8]} 9. Qxd4 {[%clk 0:02:54.8]} 9... Bc5 {[%clk
0:03:00.5]} 10. Qd3 {[%clk 0:02:55.1]} 10... Ng4 {[%clk 0:02:58.1]} 11. Nd1
{[%clk 0:02:45.8]} 11... h5 {[%clk 0:02:44.8]} 12. h3 {[%clk 0:02:43.4]} 12...
Ne5 {[%clk 0:02:41.9]} 13. Qe2 {[%clk 0:02:41.7]} 13... b5 {[%clk 0:02:41.9]}
14. Be3 {[%clk 0:02:39.7]} 14... Bb7 {[%clk 0:02:40.3]} 15. b3 {[%clk
0:02:32.7]} 15... h4 {[%clk 0:02:36.6]} 16. g4 {[%clk 0:02:29.5]} 16... Ng6
{[%clk 0:02:36.7]} 17. f4 {[%clk 0:02:05.4]} 17... Nxf4 {[%clk 0:02:00.7]} 18.
Rxf4 {[%clk 0:01:56.8]} 18... Qxf4 {[%clk 0:02:01.6]} 19. Bxc5 {[%clk
0:01:56.1]} 19... Qe5 {[%clk 0:02:02]} 20. Ba3 {[%clk 0:01:00.2]} 20... Qxa1
{[%clk 0:02:00.5]} 21. Bb2 {[%clk 0:01:00.8]} 21... Qb1 {[%clk 0:01:48.7]} 22.
Bxg7 {[%clk 0:00:50.8]} 22... Rg8 {[%clk 0:01:48.8]} 23. Bf6 {[%clk 0:00:50.6]}
23... Rc8 {[%clk 0:01:47.8]} 24. c3 {[%clk 0:00:47.6]} 24... Rg6 {[%clk
0:01:43.9]} 25. g5 {[%clk 0:00:45.3]} 25... Qc1 {[%clk 0:01:32.5]} 26. Qd3
{[%clk 0:00:32.1]} 26... Rxf6 {[%clk 0:01:24.5]} 27. gxf6 {[%clk 0:00:31.1]}
27... Qf4 {[%clk 0:01:25.2]} 28. Qd4 {[%clk 0:00:27]} 28... d5 {[%clk
0:01:18.8]} 29. exd5 {[%clk 0:00:22.5]} 29... Qxd4+ {[%clk 0:01:18]} 30. cxd4
{[%clk 0:00:20.3]} 30... Rc1 {[%clk 0:01:17.3]} 31. Bf3 {[%clk 0:00:19.1]} 31...
Bxd5 {[%clk 0:01:17.5]} 32. Be2 {[%clk 0:00:17.2]} 32... Ra1 {[%clk 0:01:17.1]}
33. Kf2 {[%clk 0:00:16.2]} 33... Rxa2 {[%clk 0:01:17.3]} 34. Ke3 {[%clk
0:00:16.5]} 34... Bxb3 {[%clk 0:01:16.1]} 35. Nc3 {[%clk 0:00:16.6]} 35... Rc2
{[%clk 0:01:16.1]} 36. Ne4 {[%clk 0:00:16.5]} 36... Bd5 {[%clk 0:01:12.8]} 37.
Nd6+ {[%clk 0:00:16.3]} 37... Kf8 {[%clk 0:01:12.5]} 38. Bh5 {[%clk 0:00:17.2]}
38... Rc7 {[%clk 0:01:09.8]} 39. Bxf7 {[%clk 0:00:17.1]} 39... Rxf7 {[%clk
0:01:10.4]} 40. Nxf7 {[%clk 0:00:16.9]} 40... Kxf7 {[%clk 0:01:11.3]} 41. Kf4
{[%clk 0:00:17.2]} 41... Kxf6 {[%clk 0:01:11.7]} 0-1

[Event "*** Titled Tuesday Blitz"]
[Site "Chess.com"]
[Date "2021.03.09"]
[Round "1"]
[White "Nozdrachev_Leonid"]
[Black "shineatchess"]
[Result "1-0"]
[WhiteElo "2532"]
[BlackElo "2205"]
[TimeControl "180+1"]
[EndTime "10:06:17 PST"]
[Termination "Nozdrachev_Leonid won by resignation"]

1. e4 {[%clk 0:02:48.9]} 1... e5 {[%clk 0:02:59.4]} 2. Nf3 {[%clk 0:02:48.3]}
2... Nc6 {[%clk 0:02:59.5]} 3. d4 {[%clk 0:02:47.2]} 3... exd4 {[%clk
0:02:57.2]} 4. Bc4 {[%clk 0:02:45.7]} 4... Nf6 {[%clk 0:02:54]} 5. e5 {[%clk
0:02:45.5]} 5... d5 {[%clk 0:02:52.4]} 6. Bb5 {[%clk 0:02:45.9]} 6... Ne4 {[%clk
0:02:52.5]} 7. Nxd4 {[%clk 0:02:46.3]} 7... Bc5 {[%clk 0:02:52]} 8. O-O {[%clk
0:02:44.8]} 8... O-O {[%clk 0:02:28.9]} 9. Nxc6 {[%clk 0:02:43.3]} 9... bxc6
{[%clk 0:02:27.4]} 10. Bxc6 {[%clk 0:02:44.2]} 10... Ba6 {[%clk 0:02:21.8]} 11.
Qxd5 {[%clk 0:02:43.9]} 11... Qxd5 {[%clk 0:01:36.5]} 12. Bxd5 {[%clk
0:02:44.8]} 12... Bxf1 {[%clk 0:01:36.2]} 13. Bxe4 {[%clk 0:02:11.6]} 13... Rad8
{[%clk 0:01:30.7]} 14. Nc3 {[%clk 0:02:07.7]} 14... Ba6 {[%clk 0:01:23.3]} 15.
Bg5 {[%clk 0:02:01.6]} 15... f6 {[%clk 0:01:04.9]} 16. exf6 {[%clk 0:01:59]}
16... gxf6 {[%clk 0:01:04.1]} 17. Bf4 {[%clk 0:01:54.4]} 17... Rf7 {[%clk
0:00:47.7]} 18. Bd5 {[%clk 0:01:51.4]} 18... Kg7 {[%clk 0:00:32]} 19. Bxf7
{[%clk 0:01:50.1]} 19... Kxf7 {[%clk 0:00:32.9]} 20. Rd1 {[%clk 0:01:45.4]}
20... Rxd1+ {[%clk 0:00:23.5]} 21. Nxd1 {[%clk 0:01:46.3]} 21... c6 {[%clk
0:00:19.9]} 22. Be3 {[%clk 0:01:45.8]} 22... Bb6 {[%clk 0:00:16.1]} 23. Bxb6
{[%clk 0:01:41.7]} 23... axb6 {[%clk 0:00:16]} 24. f4 {[%clk 0:01:38.8]} 24...
Ke6 {[%clk 0:00:15.6]} 25. Kf2 {[%clk 0:01:34.2]} 25... Kf5 {[%clk 0:00:15.7]}
26. Kf3 {[%clk 0:01:33]} 26... c5 {[%clk 0:00:15]} 27. Ne3+ {[%clk 0:01:32.4]}
27... Ke6 {[%clk 0:00:14.4]} 28. g3 {[%clk 0:01:25.3]} 28... f5 {[%clk
0:00:14.6]} 29. Kf2 {[%clk 0:01:18.9]} 29... Bb7 {[%clk 0:00:14.4]} 30. Ke1
{[%clk 0:01:18.5]} 30... Ba6 {[%clk 0:00:13.7]} 31. Kd2 {[%clk 0:01:18.2]} 31...
Bb5 {[%clk 0:00:12.8]} 32. Kc3 {[%clk 0:01:17.7]} 32... Ba6 {[%clk 0:00:12.3]}
33. a4 {[%clk 0:01:12.6]} 33... Be2 {[%clk 0:00:11.4]} 34. Nc4 {[%clk
0:01:11.2]} 1-0

[Event "*** Titled Tuesday Blitz"]
[Site "Chess.com"]
[Date "2021.03.09"]
[Round "1"]
[White "VFernandezB"]
[Black "Luibov_AN"]
[Result "1-0"]
[WhiteElo "2511"]
[BlackElo "2114"]
[TimeControl "180+1"]
[EndTime "10:06:17 PST"]
[Termination "VFernandezB won by resignation"]

1. e4 {[%clk 0:03:00.9]} 1... g6 {[%clk 0:02:57.4]} 2. d4 {[%clk 0:02:59.7]}
2... Bg7 {[%clk 0:02:57.6]} 3. Be3 {[%clk 0:02:57.6]} 3... c5 {[%clk 0:02:57.7]}
4. Nf3 {[%clk 0:02:56.9]} 4... Qb6 {[%clk 0:02:58]} 5. Nc3 {[%clk 0:02:43.3]}
5... e6 {[%clk 0:02:48.6]} 6. Na4 {[%clk 0:02:42.6]} 6... Qa5+ {[%clk
0:02:48.4]} 7. c3 {[%clk 0:02:41.3]} 7... cxd4 {[%clk 0:02:46.8]} 8. Bxd4 {[%clk
0:02:40.4]} 8... Nf6 {[%clk 0:02:45.8]} 9. Bd3 {[%clk 0:02:28.1]} 9... O-O
{[%clk 0:02:39.8]} 10. O-O {[%clk 0:02:26.2]} 10... Nc6 {[%clk 0:02:40.1]} 11.
b4 {[%clk 0:02:23.8]} 11... Qc7 {[%clk 0:02:38.8]} 12. Rc1 {[%clk 0:02:04.7]}
12... Nxd4 {[%clk 0:02:37.6]} 13. cxd4 {[%clk 0:02:02.2]} 13... Qd8 {[%clk
0:02:37.3]} 14. Qc2 {[%clk 0:01:56.3]} 14... d5 {[%clk 0:02:35.1]} 15. e5 {[%clk
0:01:55.9]} 15... Nd7 {[%clk 0:02:31.5]} 16. Qc7 {[%clk 0:01:56.1]} 16... Nb6
{[%clk 0:02:25.9]} 17. Nb2 {[%clk 0:01:47.2]} 17... f6 {[%clk 0:02:21.9]} 18.
Rfe1 {[%clk 0:01:45.2]} 18... fxe5 {[%clk 0:02:21]} 19. Nxe5 {[%clk 0:01:44.7]}
19... Qh4 {[%clk 0:02:15.7]} 20. Nf3 {[%clk 0:01:30.4]} 20... Rxf3 {[%clk
0:02:06]} 21. gxf3 {[%clk 0:01:31.3]} 21... Qxd4 {[%clk 0:02:00.9]} 22. Rc2
{[%clk 0:01:21.4]} 22... Qf6 {[%clk 0:01:49.7]} 23. Qg3 {[%clk 0:01:15.6]} 23...
Bd7 {[%clk 0:01:42.5]} 24. Rec1 {[%clk 0:01:13]} 24... Rf8 {[%clk 0:01:41.3]}
25. Be2 {[%clk 0:01:11.7]} 25... Ba4 {[%clk 0:01:38.1]} 26. Nxa4 {[%clk
0:01:10]} 26... Nxa4 {[%clk 0:01:38.5]} 27. Rc8 {[%clk 0:01:10]} 27... Nb6
{[%clk 0:01:33.9]} 28. Rxf8+ {[%clk 0:01:09]} 28... Bxf8 {[%clk 0:01:34.3]} 29.
Rc7 {[%clk 0:01:09]} 29... Bxb4 {[%clk 0:01:23.4]} 30. Rxb7 {[%clk 0:01:08.4]}
30... e5 {[%clk 0:01:19.5]} 31. Qg4 {[%clk 0:01:06]} 31... a5 {[%clk 0:01:12.7]}
32. Bb5 {[%clk 0:00:52.3]} 32... Nc4 {[%clk 0:01:05.9]} 33. Bxc4 {[%clk
0:00:45.3]} 33... dxc4 {[%clk 0:01:05.8]} 34. Qc8+ {[%clk 0:00:45.1]} 34... Qf8
{[%clk 0:01:00.8]} 35. Qxc4+ {[%clk 0:00:44.5]} 35... Kh8 {[%clk 0:01:01.7]} 36.
Qf7 {[%clk 0:00:42.7]} 36... Qxf7 {[%clk 0:00:59.7]} 37. Rxf7 {[%clk 0:00:42.4]}
37... Kg8 {[%clk 0:01:00.6]} 38. Rb7 {[%clk 0:00:40.4]} 38... h5 {[%clk
0:01:00.4]} 39. Kf1 {[%clk 0:00:40.5]} 39... g5 {[%clk 0:00:58.6]} 40. Ke2
{[%clk 0:00:40.7]} 40... g4 {[%clk 0:00:59]} 41. fxg4 {[%clk 0:00:39.7]} 41...
hxg4 {[%clk 0:00:59.9]} 42. Ke3 {[%clk 0:00:39.7]} 1-0

[Event "*** Titled Tuesday Blitz"]
[Site "Chess.com"]
[Date "2021.03.09"]
[Round "1"]
[White "kleopl"]
[Black "mishanick"]
[Result "0-1"]
[WhiteElo "2480"]
[BlackElo "3004"]
[TimeControl "180+1"]
[EndTime "10:06:19 PST"]
[Termination "mishanick won by resignation"]

1. c4 {[%clk 0:03:00.9]} 1... Nf6 {[%clk 0:02:58.6]} 2. Nc3 {[%clk 0:03:00.4]}
2... e5 {[%clk 0:02:57.7]} 3. Nf3 {[%clk 0:02:59.7]} 3... Nc6 {[%clk 0:02:57.7]}
4. e4 {[%clk 0:03:00.3]} 4... Bb4 {[%clk 0:02:54.1]} 5. d3 {[%clk 0:03:00.4]}
5... d6 {[%clk 0:02:53.7]} 6. a3 {[%clk 0:02:59]} 6... Bc5 {[%clk 0:02:52.1]} 7.
g3 {[%clk 0:02:56.6]} 7... a5 {[%clk 0:02:51.1]} 8. Bg2 {[%clk 0:02:55.9]} 8...
Bg4 {[%clk 0:02:51.6]} 9. h3 {[%clk 0:02:53.4]} 9... Bxf3 {[%clk 0:02:51.8]} 10.
Bxf3 {[%clk 0:02:49.4]} 10... Nd4 {[%clk 0:02:51]} 11. Bg2 {[%clk 0:02:49.1]}
11... Nd7 {[%clk 0:02:47.4]} 12. O-O {[%clk 0:02:47.5]} 12... O-O {[%clk
0:02:47.5]} 13. Be3 {[%clk 0:02:45.8]} 13... c6 {[%clk 0:02:45.1]} 14. f4 {[%clk
0:02:41.3]} 14... Nb3 {[%clk 0:02:36]} 15. Qxb3 {[%clk 0:02:30.8]} 15... Bxe3+
{[%clk 0:02:35.3]} 16. Kh1 {[%clk 0:02:31]} 16... Nc5 {[%clk 0:02:26.2]} 17. Qc2
{[%clk 0:02:29.8]} 17... exf4 {[%clk 0:02:25.8]} 18. gxf4 {[%clk 0:02:28.9]}
18... Qh4 {[%clk 0:02:26]} 19. Ne2 {[%clk 0:02:19.9]} 19... Ne6 {[%clk
0:02:25.7]} 20. f5 {[%clk 0:02:02.7]} 20... Nd4 {[%clk 0:02:22.1]} 21. Nxd4
{[%clk 0:02:01.4]} 21... Bxd4 {[%clk 0:02:23]} 22. Rad1 {[%clk 0:01:55.8]} 22...
a4 {[%clk 0:02:22.8]} 23. Qe2 {[%clk 0:01:48.4]} 23... Ra6 {[%clk 0:02:19.6]}
24. Rd2 {[%clk 0:01:47.2]} 24... Rb6 {[%clk 0:02:18.8]} 25. Rb1 {[%clk
0:01:37.5]} 25... Qf4 {[%clk 0:02:14.7]} 26. Rf1 {[%clk 0:01:28.7]} 26... Qe5
{[%clk 0:02:14.5]} 27. Rb1 {[%clk 0:01:26.7]} 27... Rb3 {[%clk 0:02:08.5]} 28.
Bf3 {[%clk 0:01:20.5]} 28... Qf4 {[%clk 0:02:05.9]} 29. Rf1 {[%clk 0:01:04.2]}
29... Qe5 {[%clk 0:01:57.7]} 30. Rb1 {[%clk 0:01:03.3]} 30... b5 {[%clk
0:01:53.2]} 31. cxb5 {[%clk 0:00:59.9]} 31... Rxb5 {[%clk 0:01:54.1]} 32. Qg2
{[%clk 0:00:52.7]} 32... Rfb8 {[%clk 0:01:51.3]} 33. Bd1 {[%clk 0:00:52.3]}
33... Ra5 {[%clk 0:01:39.4]} 34. Rc2 {[%clk 0:00:49.1]} 34... c5 {[%clk
0:01:32.9]} 35. Rc4 {[%clk 0:00:47]} 35... Rab5 {[%clk 0:01:29.2]} 36. Bxa4
{[%clk 0:00:41.8]} 36... Rxb2 {[%clk 0:01:27.6]} 37. Rxb2 {[%clk 0:00:34.5]}
37... Rxb2 {[%clk 0:01:28.5]} 38. Bc2 {[%clk 0:00:34.5]} 38... Ra2 {[%clk
0:01:24.3]} 39. Qf1 {[%clk 0:00:26.2]} 39... Qg3 {[%clk 0:01:18.7]} 40. Ra4
{[%clk 0:00:22.4]} 40... h5 {[%clk 0:01:16.9]} 41. Ra8+ {[%clk 0:00:16.1]} 41...
Kh7 {[%clk 0:01:16.3]} 42. Rb8 {[%clk 0:00:15.9]} 42... Rxc2 {[%clk 0:01:15]}
0-1

[Event "*** Titled Tuesday Blitz"]
[Site "Chess.com"]
[Date "2021.03.09"]
[Round "1"]
[White "Orest_Vovk"]
[Black "Onischuk_V"]
[Result "0-1"]
[WhiteElo "2431"]
[BlackElo "2822"]
[TimeControl "180+1"]
[EndTime "10:06:19 PST"]
[Termination "Onischuk_V won on time"]

1. g4 {[%clk 0:02:56]} 1... e5 {[%clk 0:02:57.1]} 2. g5 {[%clk 0:02:55.4]} 2...
Nc6 {[%clk 0:02:53.6]} 3. d3 {[%clk 0:02:52.6]} 3... h6 {[%clk 0:02:52.4]} 4.
Nf3 {[%clk 0:02:48.5]} 4... hxg5 {[%clk 0:02:52.1]} 5. Bxg5 {[%clk 0:02:47.4]}
5... Be7 {[%clk 0:02:52.1]} 6. Bxe7 {[%clk 0:02:47.1]} 6... Qxe7 {[%clk
0:02:50.7]} 7. Nc3 {[%clk 0:02:46.2]} 7... Nf6 {[%clk 0:02:50]} 8. h4 {[%clk
0:02:41.3]} 8... d5 {[%clk 0:02:48.2]} 9. Bh3 {[%clk 0:02:39]} 9... Bxh3 {[%clk
0:02:44.6]} 10. Rxh3 {[%clk 0:02:39.9]} 10... d4 {[%clk 0:02:45]} 11. Ne4 {[%clk
0:02:30.1]} 11... Nxe4 {[%clk 0:02:37.3]} 12. dxe4 {[%clk 0:02:31]} 12... O-O-O
{[%clk 0:02:34]} 13. Qd2 {[%clk 0:02:27.4]} 13... f6 {[%clk 0:02:16.3]} 14. Rg3
{[%clk 0:02:21.2]} 14... Nb8 {[%clk 0:02:05.9]} 15. O-O-O {[%clk 0:02:18.2]}
15... Na6 {[%clk 0:02:05.5]} 16. Qa5 {[%clk 0:02:09.1]} 16... Rh7 {[%clk
0:02:02.7]} 17. Rdg1 {[%clk 0:01:58.1]} 17... Kb8 {[%clk 0:01:58.5]} 18. Ne1
{[%clk 0:01:46.5]} 18... Rd7 {[%clk 0:01:57.4]} 19. Nd3 {[%clk 0:01:20]} 19...
Qe6 {[%clk 0:01:45.7]} 20. f3 {[%clk 0:01:07.9]} 20... Qb6 {[%clk 0:01:40.2]}
21. Qxb6 {[%clk 0:01:03.6]} 21... axb6 {[%clk 0:01:40]} 22. h5 {[%clk
0:00:30.2]} 22... c5 {[%clk 0:01:36.9]} 23. b3 {[%clk 0:00:29.5]} 23... b5
{[%clk 0:01:37]} 24. Rg6 {[%clk 0:00:14.1]} 24... Rxh5 {[%clk 0:01:29.5]} 25.
Rxg7 {[%clk 0:00:13.6]} 25... Rxg7 {[%clk 0:01:29.3]} 26. Rxg7 {[%clk
0:00:14.5]} 26... c4 {[%clk 0:01:29.6]} 27. Nf2 {[%clk 0:00:14]} 27... Rh2
{[%clk 0:01:26.1]} 28. Ng4 {[%clk 0:00:13.4]} 28... Rxe2 {[%clk 0:01:25.9]} 29.
Nxf6 {[%clk 0:00:13.4]} 29... Nb4 {[%clk 0:01:24]} 30. Nd7+ {[%clk 0:00:10.9]}
30... Ka7 {[%clk 0:01:22.1]} 31. Nxe5 {[%clk 0:00:04.8]} 31... Rxc2+ {[%clk
0:01:19.6]} 32. Kd1 {[%clk 0:00:04.8]} 32... d3 {[%clk 0:01:17.5]} 33. a3 {[%clk
0:00:02.9]} 33... Na2 {[%clk 0:01:15.9]} 34. bxc4 {[%clk 0:00:02.8]} 34... Nc3+
{[%clk 0:01:14.1]} 35. Ke1 {[%clk 0:00:02.7]} 35... d2+ {[%clk 0:01:13.1]} 0-1

[Event "*** Titled Tuesday Blitz"]
[Site "Chess.com"]
[Date "2021.03.09"]
[Round "1"]
[White "Chesspirate_Channel"]
[Black "Firegrizzly"]
[Result "1-0"]
[WhiteElo "2376"]
[BlackElo "2646"]
[TimeControl "180+1"]
[EndTime "10:06:19 PST"]
[Termination "Chesspirate_Channel won by checkmate"]

1. d4 {[%clk 0:02:58.6]} 1... Nf6 {[%clk 0:02:57.6]} 2. Nc3 {[%clk 0:02:58.7]}
2... g6 {[%clk 0:02:57.3]} 3. Bg5 {[%clk 0:02:57.9]} 3... Bg7 {[%clk 0:02:57]}
4. Qd2 {[%clk 0:02:58.3]} 4... h6 {[%clk 0:02:57.4]} 5. Bf4 {[%clk 0:02:58]}
5... d6 {[%clk 0:02:57.8]} 6. Nf3 {[%clk 0:02:55.4]} 6... c6 {[%clk 0:02:53.4]}
7. e4 {[%clk 0:02:53.7]} 7... b5 {[%clk 0:02:51]} 8. Bd3 {[%clk 0:02:48.9]} 8...
b4 {[%clk 0:02:45.6]} 9. Ne2 {[%clk 0:02:48.6]} 9... a5 {[%clk 0:02:46]} 10. e5
{[%clk 0:02:35.4]} 10... Nd5 {[%clk 0:02:45]} 11. Bg3 {[%clk 0:02:34.5]} 11...
Ba6 {[%clk 0:02:43.1]} 12. e6 {[%clk 0:02:23]} 12... Bxd3 {[%clk 0:02:39]} 13.
exf7+ {[%clk 0:02:22.7]} 13... Kxf7 {[%clk 0:02:38.4]} 14. Qxd3 {[%clk
0:02:23.6]} 14... Nd7 {[%clk 0:02:36.4]} 15. h4 {[%clk 0:02:21.6]} 15... N7f6
{[%clk 0:02:31.2]} 16. O-O-O {[%clk 0:02:14.8]} 16... a4 {[%clk 0:02:27.5]} 17.
Nf4 {[%clk 0:02:13.8]} 17... Nxf4 {[%clk 0:02:25.3]} 18. Bxf4 {[%clk 0:02:14.7]}
18... Nd5 {[%clk 0:02:25.1]} 19. Bd2 {[%clk 0:02:11.3]} 19... Qc8 {[%clk
0:02:22.5]} 20. Rh3 {[%clk 0:02:06]} 20... Qf5 {[%clk 0:02:22.3]} 21. Ng5+
{[%clk 0:02:05.8]} 21... hxg5 {[%clk 0:02:21.1]} 22. Rf3 {[%clk 0:02:05.6]}
22... e6 {[%clk 0:02:17.7]} 23. Rxf5+ {[%clk 0:02:04.8]} 23... gxf5 {[%clk
0:02:18.2]} 24. Bxg5 {[%clk 0:02:00.9]} 24... b3 {[%clk 0:02:17.9]} 25. cxb3
{[%clk 0:01:59.8]} 25... axb3 {[%clk 0:02:05.3]} 26. a3 {[%clk 0:01:59.3]} 26...
Ra4 {[%clk 0:02:03]} 27. Qxb3 {[%clk 0:01:56.1]} 27... Ra7 {[%clk 0:01:49.5]}
28. f3 {[%clk 0:01:41.4]} 28... Rc8 {[%clk 0:01:45.9]} 29. g4 {[%clk 0:01:41]}
29... f4 {[%clk 0:01:43.5]} 30. h5 {[%clk 0:01:38.6]} 30... c5 {[%clk
0:01:43.8]} 31. dxc5 {[%clk 0:01:31.7]} 31... Rxc5+ {[%clk 0:01:42.7]} 32. Kb1
{[%clk 0:01:32]} 32... Rac7 {[%clk 0:01:27.6]} 33. h6 {[%clk 0:01:11]} 33... Be5
{[%clk 0:01:25.9]} 34. Qd3 {[%clk 0:01:10.2]} 34... Bxb2 {[%clk 0:01:12.3]} 35.
Kxb2 {[%clk 0:01:02.5]} 35... Rb7+ {[%clk 0:01:12.1]} 36. Ka1 {[%clk 0:00:56.7]}
36... Kf8 {[%clk 0:00:56.2]} 37. Rb1 {[%clk 0:00:32.3]} 37... Ra7 {[%clk
0:00:51.7]} 38. Rb8+ {[%clk 0:00:31.3]} 38... Kf7 {[%clk 0:00:52]} 39. Qh7#
{[%clk 0:00:27.2]} 1-0

[Event "*** Titled Tuesday Blitz"]
[Site "Chess.com"]
[Date "2021.03.09"]
[Round "1"]
[White "djano"]
[Black "sergoy"]
[Result "1-0"]
[WhiteElo "2459"]
[BlackElo "2827"]
[TimeControl "180+1"]
[EndTime "10:06:20 PST"]
[Termination "djano won by resignation"]

1. e4 {[%clk 0:03:00.9]} 1... c5 {[%clk 0:02:59.9]} 2. Nc3 {[%clk 0:02:55.9]}
2... e6 {[%clk 0:02:58.6]} 3. f4 {[%clk 0:02:53.6]} 3... a6 {[%clk 0:02:57.2]}
4. Nf3 {[%clk 0:02:50.8]} 4... b5 {[%clk 0:02:57.4]} 5. d4 {[%clk 0:02:50.4]}
5... cxd4 {[%clk 0:02:56.9]} 6. Nxd4 {[%clk 0:02:50.2]} 6... Bb7 {[%clk
0:02:57.8]} 7. Bd3 {[%clk 0:02:45.4]} 7... b4 {[%clk 0:02:54.8]} 8. Nce2 {[%clk
0:02:39.1]} 8... Nf6 {[%clk 0:02:53.1]} 9. e5 {[%clk 0:02:33.6]} 9... Nd5 {[%clk
0:02:46.8]} 10. O-O {[%clk 0:02:31.7]} 10... d6 {[%clk 0:02:47]} 11. f5 {[%clk
0:02:16.2]} 11... dxe5 {[%clk 0:02:29.7]} 12. fxe6 {[%clk 0:02:16.1]} 12... exd4
{[%clk 0:02:29.8]} 13. exf7+ {[%clk 0:02:10.3]} 13... Kd7 {[%clk 0:02:29.4]} 14.
Nxd4 {[%clk 0:01:58.8]} 14... Bc5 {[%clk 0:02:29.1]} 15. Bf5+ {[%clk 0:01:57.8]}
15... Kc7 {[%clk 0:02:28.8]} 16. Kh1 {[%clk 0:01:57.2]} 16... Bxd4 {[%clk
0:02:27.5]} 17. Qxd4 {[%clk 0:01:58.1]} 17... Nc6 {[%clk 0:02:13.7]} 18. Qxg7
{[%clk 0:01:57.4]} 18... Rf8 {[%clk 0:02:04.6]} 19. Bh6 {[%clk 0:01:48.3]} 19...
Qe7 {[%clk 0:01:45.2]} 20. Bxh7 {[%clk 0:01:24]} 20... Qh4 {[%clk 0:00:37.6]}
21. Rae1 {[%clk 0:00:56.1]} 21... Nce7 {[%clk 0:00:35.3]} 22. Bg5 {[%clk
0:00:43.2]} 22... Qg4 {[%clk 0:00:31]} 23. Bf4+ {[%clk 0:00:42.4]} 23... Nxf4
{[%clk 0:00:14.9]} 24. Qxg4 {[%clk 0:00:41]} 24... Bxg2+ {[%clk 0:00:11.1]} 25.
Kg1 {[%clk 0:00:39.4]} 25... Bxf1 {[%clk 0:00:11.2]} 26. Qxf4+ {[%clk
0:00:38.8]} 1-0

[Event "*** Titled Tuesday Blitz"]
[Site "Chess.com"]
[Date "2021.03.09"]
[Round "1"]
[White "Leo_C"]
[Black "Dedic8"]
[Result "1-0"]
[WhiteElo "2447"]
[BlackElo "2808"]
[TimeControl "180+1"]
[EndTime "10:06:20 PST"]
[Termination "Leo_C won by resignation"]

1. d4 {[%clk 0:03:00.9]} 1... Nf6 {[%clk 0:02:57.1]} 2. c4 {[%clk 0:02:59.8]}
2... e6 {[%clk 0:02:57.3]} 3. Nc3 {[%clk 0:02:58.9]} 3... Bb4 {[%clk 0:02:57.1]}
4. e3 {[%clk 0:02:58.6]} 4... O-O {[%clk 0:02:56.8]} 5. Bd3 {[%clk 0:02:52.8]}
5... b6 {[%clk 0:02:54.1]} 6. Ne2 {[%clk 0:02:44.1]} 6... Bb7 {[%clk 0:02:53.7]}
7. O-O {[%clk 0:02:43.7]} 7... c5 {[%clk 0:02:44.3]} 8. d5 {[%clk 0:02:39.5]}
8... exd5 {[%clk 0:02:11.9]} 9. Nxd5 {[%clk 0:02:30.6]} 9... Nxd5 {[%clk
0:02:04.7]} 10. cxd5 {[%clk 0:02:30.6]} 10... d6 {[%clk 0:02:02.3]} 11. a3
{[%clk 0:02:26.7]} 11... Ba5 {[%clk 0:02:02.7]} 12. Rb1 {[%clk 0:02:22.1]} 12...
b5 {[%clk 0:01:22.1]} 13. Bxb5 {[%clk 0:02:19.9]} 13... Nd7 {[%clk 0:01:21.2]}
14. Ng3 {[%clk 0:02:04.5]} 14... Bb6 {[%clk 0:01:13.8]} 15. b4 {[%clk
0:02:01.4]} 15... cxb4 {[%clk 0:01:06.9]} 16. axb4 {[%clk 0:02:01.1]} 16... Rc8
{[%clk 0:01:02.7]} 17. Bb2 {[%clk 0:02:00.5]} 17... Ne5 {[%clk 0:01:01.5]} 18.
Bd4 {[%clk 0:01:39.7]} 18... g6 {[%clk 0:00:57.8]} 19. f4 {[%clk 0:01:33.7]}
19... Nc4 {[%clk 0:00:48.7]} 20. Qd3 {[%clk 0:01:24]} 20... Bxd5 {[%clk
0:00:37.5]} 21. Bxb6 {[%clk 0:01:02.9]} 21... Nxb6 {[%clk 0:00:36.5]} 22. Qd4
{[%clk 0:00:50.3]} 22... Qe7 {[%clk 0:00:30.2]} 23. e4 {[%clk 0:00:48.7]} 23...
Bc4 {[%clk 0:00:27.9]} 24. Rf3 {[%clk 0:00:44.8]} 24... Bxb5 {[%clk 0:00:27]}
25. Nf5 {[%clk 0:00:44.8]} 1-0